[Event "74th PGNiG TERMIKA POL-ch Women 2022"]
[Site "Kruszwica"]
[Date "2022.05.10"]
[Round "2.1"]
[White "Rudzinska, Michalina"]
[Black "Kubicka, Anna"]
[Result "1-0"]
[ECO "B10"]
[WhiteElo "2236"]
[BlackElo "2245"]
[Annotator "TA"]
[PlyCount "141"]
[EventDate "2022.05.09"]
[EventType "tourn"]
[EventCountry "POL"]
[SourceTitle "playchess.com"]
[Source "ChessBase"]
[SourceQuality "1"]
[TimeControl "40/5400+30:1800+30"]

{[%evp 9,141,0,0,11,12,11,14,9,12,10,14,4,14,15,20,17,21,15,39,45,44,13,36,28,31,27,44,38,44,39,45,33,41,40,36,29,35,17,29,10,34,24,36,31,67,29,28,0,43,0,14,-27,0,0,47,-15,0,0,16,20,86,87,111,107,174,166,171,161,173,160,169,175,164,177,169,154,170,170,160,163,214,202,210,200,241,226,239,239,288,277,283,276,262,275,294,293,400,359,403,402,387,377,504,497,532,517,536,537,538,539,518,527,530,504,590,485,771,746,915,898,858,781,1722,1609,1606,1341,6099,4717,12843,2057,12837,12837,29983,12845]} 1. e4 {[%emt 0:00:03]} c6 {[%emt 0:00:09]} 2. Nf3 {[%emt 0:00:08]} d5 {[%emt 0:00:06]} 3. exd5 {[%emt 0:00:08]} cxd5 {[%emt 0:00:04]} 4. Ne5 {[%emt 0:00:13]} Nc6 {[%emt 0:00:42]} 5. d4 {[%emt 0:00:10]} e6 {[%emt 0:03:57]} 6. Bb5 {[%emt 0:00:57] B10: Caro-Kann: 2 d3 and 2 c4.} Bd7 {[%emt 0:09:34]} 7. Nxd7 {[%emt 0:00:28]} Qxd7 {[%emt 0:00:10]} 8. c3 {[%emt 0:01:06] The position is equal.} Nf6 {[%emt 0:00:45]} 9. Nd2 {[%emt 0:02:04]} Bd6 {[%emt 0:00:28]} 10. O-O {[%emt 0:02:03]} a6 {[%emt 0:01:12]} 11. Bd3 {[%emt 0:00:12]} e5 {[%emt 0:07:11]} 12. dxe5 {[%emt 0:02:08]} Nxe5 {[%emt 0:00:07]} 13. Nf3 {[#] Nxe5 is the strong threat.} Nxd3 $146 {[%emt 0:02:37]} (13... O-O {seems wilder.} 14. Nxe5 Bxe5 15. Bg5 Ng4) ({Predecessor:} 13... O-O 14. h3 Nxd3 15. Qxd3 h6 16. Be3 Rfe8 17. Rfe1 Rac8 18. Rad1 b5 19. Bd4 Rxe1+ 20. Rxe1 {1-0 (63) Shahaliyev,I (2379)-Gaprindashvili,V (2360) Baku 2017}) 14. Qxd3 {[%emt 0:00:38]} O-O {[%emt 0:01:06]} 15. Be3 {[%emt 0:03:29]} Rad8 {[%emt 0:08:09]} 16. Bg5 {[%emt 0:09:33]} Be7 $1 {[%emt 0:01:03]} 17. Rad1 {[%emt 0:00:56]} Ne4 {[%emt 0:08:09]} 18. Bxe7 {[%emt 0:01:33]} Qxe7 {[%emt 0:00:04]} 19. Rfe1 {[%emt 0:09:47]} Rfe8 {[%emt 0:08:52]} 20. Qc2 {[%emt 0:08:58]} b5 {[%emt 0:05:02]} 21. Rd4 {[%emt 0:02:23]} Qb7 {[%emt 0:03:30]} 22. Red1 {[%emt 0:16:28]} h6 {[%emt 0:02:48]} 23. Qd3 {[%emt 0:02:28][%cal Rd4d5]} Qb6 {[%emt 0:06:46]} 24. Ne1 {[%emt 0:04:06]} Rd6 {[%emt 0:04:15]} 25. Nc2 {[%emt 0:05:49]} Rf6 {[%emt 0:04:18]} 26. Rf1 {[%emt 0:01:12]} Nc5 {[%emt 0:01:42]} 27. Qd2 {[%emt 0:10:31]} Ne6 {[%emt 0:02:02]} 28. Rg4 {[%emt 0:00:33]} Qc5 {[%emt 0:09:28]} 29. Qe3 {[%emt 0:02:31]} Qc8 {[%emt 0:02:03]} 30. Qg3 {[%emt 0:02:28]} h5 {[%emt 0:04:00]} (30... g5 $5 {[%cal Re6f4]}) 31. Rh4 {[%emt 0:00:25]} Qd8 {[%emt 0:00:11]} (31... g6 $11) 32. f4 {[%emt 0:04:15]} ({Not} 32. Rxh5 Nf4 33. Qh4 Nxh5 34. Qxh5 Rfe6 $17) (32. Re1 $14) 32... g6 {[%emt 0:03:27]} 33. f5 $1 {[%emt 0:02:13]} Ng7 {[%emt 0:00:03]} 34. Nd4 {[%emt 0:01:28]} Qe7 {[%emt 0:01:21]} (34... Qb6 $11 {keeps the balance.}) 35. Rhf4 $16 {[%emt 0:00:52] White is more active. White now steadily converts the win.} Qe5 {[%emt 0:01:51][%cal Rg6f5]} 36. fxg6 {[%emt 0:01:15]} Rxg6 {[%emt 0:00:21]} (36... Rxf4 $16 {is a better defense.} 37. Qxf4 (37. Rxf4 fxg6 38. h3 Kh7 $14) 37... Qxf4 38. Rxf4 fxg6) 37. Qf2 {[%emt 0:01:43]} f6 {[%emt 0:00:50]} 38. Rxf6 {[%emt 0:00:40]} Rxf6 {[%emt 0:00:21]} 39. Qxf6 {[%emt 0:00:05]} Qxf6 {[%emt 0:00:26]} 40. Rxf6 $18 {[%emt 0:00:00][%mdl 4096] Endgame KRN-KRN} Re1+ {[%emt 0:00:00]} 41. Rf1 {[%emt 0:00:12]} Re4 {[%emt 0:03:12]} 42. Rd1 {[%emt 0:05:25]} Ne8 {[%emt 0:02:10]} 43. Kf2 {[%emt 0:03:40]} Nf6 {[%emt 0:02:20]} 44. h3 {[%emt 0:00:53] Against Ng4+} Rf4+ {[%emt 0:01:04]} (44... Kf7 $142 45. a4 bxa4) 45. Kg3 {[%emt 0:03:29]} Re4 {[%emt 0:00:41]} 46. Kf3 {[%emt 0:00:15]} Kf7 {[%emt 0:03:15]} 47. Nc6 {[%emt 0:01:29]} Ke6 {[%emt 0:14:16]} 48. Nb4 {[%emt 0:00:49]} Ke5 {[%emt 0:00:19]} 49. Nxa6 {[%emt 0:01:39]} Rf4+ {[%emt 0:00:10]} 50. Ke3 {[%emt 0:01:15]} Re4+ {[%emt 0:01:18]} 51. Kf2 {[%emt 0:04:28]} Rf4+ {[%emt 0:01:06]} 52. Kg1 {[%emt 0:00:17]} Rf5 {[%emt 0:06:03]} 53. Nb4 {[%emt 0:07:27]} Rg5 {[%emt 0:00:09]} 54. Nc6+ {[%emt 0:00:29]} Ke4 {[%emt 0:00:22]} 55. Nd4 {[%emt 0:00:40]} Ke3 {[%emt 0:01:13]} 56. Nxb5 {[%emt 0:01:46]} h4 {[%emt 0:00:22]} 57. Nd4 {[%emt 0:01:04]} Rg8 {[%emt 0:01:13]} 58. Nf5+ {[%emt 0:02:00]} Ke2 {[%emt 0:00:06]} 59. Rd4 {[%emt 0:00:23]} Rb8 {[%emt 0:00:47]} 60. b3 {[%emt 0:00:31]} Ra8 {[%emt 0:00:19]} 61. a4 {[%emt 0:01:18]} Rb8 {[%emt 0:00:23]} 62. Rxh4 {[%emt 0:01:07]} Ne4 {[%emt 0:00:38]} (62... Kd3 $142 63. c4 dxc4) 63. c4 {[%emt 0:00:34][%cal Bc3c4,Bc4d5,Bd5d6][%mdl 32]} Rf8 {[%emt 0:00:46] [#]} 64. cxd5 $1 {[%emt 0:00:43]} Nd2 {[%emt 0:00:30]} (64... Nc5 65. Nd4+) 65. Ng3+ {[%emt 0:02:07]} Ke1 {[%emt 0:00:04]} 66. b4 {[%emt 0:01:02]} Rd8 {[%emt 0:00:56]} 67. Rd4 {[%emt 0:00:44]} Rc8 {[%emt 0:00:29]} 68. d6 {[%emt 0:00:53]} Rc2 {[%emt 0:00:20]} 69. Rf4 {[%emt 0:01:12] White threatens d7 and mate.} Rc6 {[%emt 0:00:38]} 70. Ne4 {[%emt 0:00:35] Intending d7 and mate.} Rc4 {[%emt 0:00:33] [#]} 71. Nc5 $1 {[%emt 0:00:40] Weighted Error Value: White=0.08 (flawless) /Black=0.20 (precise)} 1-0

[Event "74th PGNiG TERMIKA POL-ch Women 2022"]
[Site "Kruszwica"]
[Date "2022.05.10"]
[Round "2.2"]
[White "Malicka, Maria"]
[Black "Zawadzka, Jolanta"]
[Result "0-1"]
[ECO "B50"]
[WhiteElo "2377"]
[BlackElo "2409"]
[Annotator "TA"]
[PlyCount "252"]
[EventDate "2022.05.09"]
[EventType "tourn"]
[EventCountry "POL"]
[SourceTitle "playchess.com"]
[Source "ChessBase"]
[SourceQuality "1"]
[TimeControl "40/5400+30:1800+30"]

{[%evp 9,252,13,8,10,28,21,22,8,5,7,12,0,16,17,15,6,46,34,36,42,59,27,83,64,83,88,86,39,25,25,38,0,34,34,41,19,35,42,37,22,28,23,27,31,36,0,0,0,0,0,0,0,64,59,64,25,30,28,107,123,120,41,43,37,94,86,71,12,766,578,535,0,0,-142,-168,-167,0,0,0,0,0,-563,-523,-396,-366,-1076,-923,-945,-984,-972,-882,-512,-389,-1042,-462,-880,-844,-835,-782,-299,-6,-6,-6,-559,-546,-611,-6,-689,-6,-6,-6,-8513,-6,-787,-6,-6,-6,-6,-6,-6,-6,-6,0,-6,0,0,0,0,0,0,0,0,0,0,0,0,0,0,0,0,0,0,0,0,0,0,0,0,0,0,0,0,0,0,0,0,0,0,0,0,0,0,0,0,0,0,0,0,0,0,0,0,0,0,0,0,0,0,0,0,0,0,0,0,0,0,0,0,0,0,0,0,0,0,0,0,0,0,0,0,0,0,0,0,0,0,0,0,0,0,0,-27979,-27979,-27980,0,0,0,0,0,0,0,0,0,0,0,0,0,0,0,0,0,0,0,-27986,-27986,-27987,-27984,-27985,-27985,-27986,-27981,-27985,-27985,-27999,-27999]} 1. e4 {[%emt 0:00:02]} c5 {[%emt 0:00:05]} 2. Nf3 {[%emt 0:00:02]} d6 {[%emt 0:00:06]} 3. c3 {[%emt 0:00:08]} Nf6 {[%emt 0:00:23]} 4. Be2 {[%emt 0:00:07]} Bd7 {[%emt 0:02:39]} 5. Qc2 {[%emt 0:00:16]} Bc6 {[%emt 0:03:58]} 6. d3 {[%emt 0:00:25] B50: Sicilian: 2...d6, Miscellaneous.} g6 {[%emt 0:02:41]} 7. O-O {[%emt 0:03:33]} Bg7 {[%emt 0:02:38] [#]} 8. c4 $146 {[%emt 0:01:09] The position is equal.} ({Predecessor:} 8. h3 O-O 9. Bf4 Nbd7 10. Nbd2 Rc8 11. Rfe1 b5 12. Bf1 a5 13. Rad1 Nb6 14. Qb1 {1-0 (45) Siniauski,A (2222)-Golsta,M (1982) Chess.com INT 2022}) 8... O-O {[%emt 0:07:53]} 9. Nc3 {[%emt 0:00:19]} Ne8 {[%emt 0:05:22]} 10. Bg5 {[%emt 0:13:39]} h6 {[%emt 0:07:35]} 11. Be3 {[%emt 0:13:03]} e5 {[%emt 0:16:12] Against d4} 12. Ne1 {[%emt 0:02:20]} f5 {[%emt 0:00:44]} 13. exf5 {[%emt 0:00:53]} gxf5 {[%emt 0:00:35]} 14. f4 {[%emt 0:00:19]} Nd7 {[%emt 0:01:59]} 15. Bf3 {[%emt 0:04:08]} (15. Qd2 $5 {[%cal Rf4e5]}) 15... Kh8 {[%emt 0:04:43]} (15... Nef6 $11) 16. Kh1 {[%emt 0:05:08]} Rb8 {[%emt 0:02:23]} 17. Qd2 {[%emt 0:10:49]} Qf6 {[%emt 0:02:33]} 18. Nc2 {[%emt 0:10:43]} (18. Bxc6 $16 bxc6 19. Nf3) 18... Nc7 $14 {[%emt 0:02:05]} 19. Rae1 {[%emt 0:05:04]} Ne6 {[%emt 0:04:41]} 20. fxe5 {[%emt 0:01:18]} dxe5 {[%emt 0:02:13]} 21. Nd5 {[%emt 0:04:50]} Bxd5 {[%emt 0:03:30]} 22. Bxd5 {[%emt 0:00:04]} Qg6 {[%emt 0:00:46]} 23. b4 {[%emt 0:11:37]} b6 {[%emt 0:04:25]} 24. a3 {[%emt 0:02:34]} Rbd8 {[%emt 0:01:24]} 25. bxc5 {[%emt 0:02:16]} Ndxc5 {[%emt 0:00:57]} 26. Nb4 {[%emt 0:01:15][%cal Bc2b4,Bb4c6,Bc6a7,Ba7b5][%mdl 32]} Nc7 {[%emt 0:03:01]} 27. Bxc5 {[%emt 0:02:49]} bxc5 {[%emt 0:00:08]} 28. Nc6 {[%emt 0:00:06]} Rde8 {[%emt 0:01:01]} 29. Nxa7 {[%emt 0:03:09]} Nxd5 {[%emt 0:02:59]} (29... Qa6 $5 30. Nc6 Nxd5 31. cxd5 e4 $14) 30. cxd5 {[%emt 0:00:02]} e4 {[%emt 0:02:05]} (30... Qa6 $11 31. Nc6 e4) 31. Nb5 {[%emt 0:02:04]} Be5 {[%emt 0:05:52] Inhibits Nc7.} 32. dxe4 {[%emt 0:00:25]} fxe4 {[%emt 0:00:06]} 33. d6 {[%emt 0:01:01] And now d7 would win.} Rd8 {[%emt 0:04:04]} (33... Rxf1+ $11 {keeps the balance.} 34. Rxf1 Qh5) 34. Rxf8+ $16 {[%emt 0:00:35]} Rxf8 {[%emt 0:00:01]} 35. d7 {[%emt 0:00:54]} (35. a4 $16) 35... Qf6 $1 $14 {[%emt 0:00:24][%cal Of6f1]} 36. Qe2 {[%emt 0:00:40] Prevents Qf1+.} Qc6 {[%emt 0:02:15]} (36... Qf5 $14) 37. Rd1 $16 {[%emt 0:00:26]} Rd8 {[%emt 0:00:32] [#]} 38. Qh5 {[%emt 0:00:23]} (38. Qd2 $1 $16) 38... Bg7 $2 {[%emt 0:00:54][%mdl 8192]} (38... Qe6 $11) 39. a4 {[%emt 0:00:23]} e3 {[%emt 0:02:12]} 40. Rd6 {[%emt 0:00:00] Against Qe6} ({White must play} 40. Nd6 $1 $18 {[%cal Rd6f7] Threatens to win with Nf7+.} Rxd7 41. Nf7+ Rxf7 42. Qxf7) 40... Qe4 $11 {[%emt 0:00:00]} 41. Rxh6+ {[%emt 0:17:44]} (41. Nc3 $1 $11 Bxc3 42. Rxh6+ Kg8 43. Qg5+ Kf7 44. Qh5+ Kg8 45. Qg5+ Kf7 46. Qh5+ Kg8) 41... Kg8 $17 {[%emt 0:11:01] ( -> ...Qb1+)} (41... Bxh6 $6 42. Qxh6+ Kg8 43. Qg5+ Kh7 44. Qh5+ Kg8 45. Qg5+ Kh7 46. Qh5+ Kg8 47. Qg5+ $11) 42. Nc3 {[%emt 0:04:27] Inhibits Qb1+.} ({Not} 42. Rh8+ $2 Bxh8 43. Qg5+ Bg7 44. Qxd8+ Kh7 $19) 42... Qf4 $40 {[%emt 0:10:36][%mdl 128] Black has some attack.} (42... e2 $1 $19 {[%cal Re2e1]} 43. Nxe2 Bxh6 44. Qxh6 Rxd7) 43. Qe8+ $11 {[%emt 0:04:27]} Qf8 {[%emt 0:00:05] Really sharp!} 44. Re6 {[%emt 0:04:59][%cal Oe8d8]} Rxd7 {[%emt 0:02:48]} 45. Qxf8+ $4 {[%emt 0:01:40][%mdl 8192]} ({But not} 45. Rxe3 Qxe8 46. Rxe8+ Kf7 $19) (45. h4 $11 Bxc3 46. Qxd7 Qf1+ 47. Kh2 Qf4+ 48. Kh3 Qf5+ 49. g4 Qf3+ 50. Kh2 Qe2+ 51. Kg3 Qf2+ 52. Kh3 Qf3+ 53. Kh2 Qf2+ 54. Kh3 Qf3+) 45... Kxf8 $19 {[%emt 0:00:14]} 46. Rxe3 {[%emt 0:00:28]} Bxc3 $11 {[%emt 0:00:12][%mdl 4096] Endgame KRB-KR} 47. g4 $2 {[%emt 0:00:03]} (47. g3 Bb4 48. Re4) 47... Rd1+ $19 {[%emt 0:01:01]} 48. Kg2 {[%emt 0:00:02]} Bd4 {[%emt 0:00:05]} 49. Re2 {[%emt 0:01:00]} c4 {[%emt 0:00:39] Hoping for ...c3.} 50. Kf3 {[%emt 0:00:23]} c3 {[%emt 0:00:35] White must now prevent ...Rd3+.} 51. Ra2 $2 {[%emt 0:01:04]} (51. Rc2) 51... Ke7 {[%emt 0:03:58]} (51... Rb1 $142 {Strongly threatening ...Rb2.} 52. Ke4 Rb2) 52. Ke2 {[%emt 0:00:13]} (52. a5 $142 Rd3+ 53. Ke2) 52... Rg1 {[%emt 0:01:42] ...Rg2+ is the strong threat.} 53. Kd3 {[%emt 0:00:11]} Rxg4 {[%emt 0:00:29]} 54. a5 {[%emt 0:00:02]} Bf6 $2 {[%emt 0:02:15]} (54... Bh8 $1 $19 55. a6 Rg8) 55. a6 $11 {[%emt 0:00:39]} Rg8 {[%emt 0:00:13] aiming for ...Ra8.} 56. h4 $2 {[%emt 0:01:32][%mdl 8192]} (56. a7 $11 {and White is okay.} Rd8+ 57. Kc2) 56... Rd8+ $19 {[%emt 0:01:13]} 57. Kc4 {[%emt 0:00:29]} Rc8+ $2 {[%emt 0:00:10]} (57... Kd6 $19 58. h5 Kc7) 58. Kb3 $2 {[%emt 0:00:21][%mdl 8192]} (58. Kd3 $11) 58... Kd7 $2 {[%emt 0:01:16]} ({Black should play} 58... Ra8 $19 59. a7 Kd7) 59. a7 $11 {[%emt 0:00:26]} Ra8 {[%emt 0:00:07]} 60. Rf2 $2 {[%emt 0:00:42][%mdl 8192]} (60. Ra6 $11 Bxh4 61. Kxc3) 60... Bh8 $2 {[%emt 0:01:38]} ({Weaker is} 60... Bxh4 61. Rf1 $15) (60... Ke6 $19 61. Ra2 Bh8) 61. h5 $2 {[%emt 0:00:12][%mdl 8192]} (61. Rf7+ $11 Kc6 62. h5) 61... Kc6 $2 {[%emt 0:00:08]} (61... Ke7 $19 62. Ra2 Bd4) 62. Rf7 $1 {[%emt 0:00:17]} Kb6 {[%emt 0:00:27]} 63. Rh7 $1 {[%emt 0:00:11]} Ka6 {[%emt 0:01:32]} (63... Bd4 $5 64. Rd7 Bh8 $11) 64. Kc2 {[%emt 0:00:57]} Rc8 {[%emt 0:00:48]} 65. Rc7 {[%emt 0:00:49]} Ra8 {[%emt 0:00:40]} 66. Rh7 $1 {[%emt 0:00:02]} Bd4 {[%emt 0:00:49]} 67. Rd7 $1 {[%emt 0:00:04]} Bxa7 {[%emt 0:00:27]} (67... Be5 $5 68. Re7 Bd4 $11) 68. Kxc3 $2 {[%emt 0:00:03][%mdl 8192]} (68. h6 $11) 68... Rh8 $2 {[%emt 0:00:05][%mdl 8192]} (68... Rc8+ $11 69. Kd3 Rc6) 69. Rd5 $2 {[%emt 0:00:20][%mdl 8192]} (69. Kd2 $11) 69... Be3 $2 {[%emt 0:00:21][%mdl 8192]} (69... Rh6 $11) 70. Kd3 {[%emt 0:00:05]} Bh6 $2 {[%emt 0:00:05][%mdl 8192]} (70... Bf4 $11) 71. Ke4 $2 {[%emt 0:00:30][%mdl 8192]} (71. Rd4 $11) 71... Bg7 $2 {[%emt 0:00:58][%mdl 8192]} (71... Re8+ $11 72. Re5 Rxe5+ 73. Kxe5 Bg7+ 74. Kf5 Bh6) 72. Rd7 $2 {[%emt 0:00:38][%mdl 8192]} (72. Rd6+ $11 Kb5 73. Rd3) 72... Bb2 $2 {[%emt 0:00:26][%mdl 8192]} (72... Re8+ $11 73. Kd3 Bh8) 73. Rd2 $2 {[%emt 0:00:25][%mdl 8192]} (73. Rd6+ $11 Kb7 74. Rd2) 73... Bc3 $2 {[%emt 0:00:51][%mdl 8192]} (73... Re8+ $11 74. Kf5 Re5+ 75. Kf4 Bc3) 74. Rd3 $2 {[%emt 0:00:23][%mdl 8192]} (74. Ra2+ $11 Kb5 75. Rh2) 74... Bb4 $2 {[%emt 0:00:12][%mdl 8192]} (74... Re8+ $11 75. Kf5 Re5+ 76. Kf4 Rc5) 75. Rh3 $2 {[%emt 0:01:02][%mdl 8192]} (75. h6 $11) 75... Rh6 {[%emt 0:00:25]} 76. Kf5 {[%emt 0:00:34]} Kb5 {[%emt 0:00:06]} 77. Rh2 $2 {[%emt 0:01:11][%mdl 8192]} (77. Kg4 $11) 77... Be7 $2 {[%emt 0:00:36][%mdl 8192]} (77... Bc3 $11) 78. Re2 $2 {[%emt 0:01:08][%mdl 8192]} (78. Kg4 $11) 78... Rxh5+ {[%emt 0:00:41]} 79. Kg6 $2 {[%emt 0:00:23][%mdl 8192]} (79. Ke6 $11) 79... Rg5+ {[%emt 0:00:03]} 80. Kh6 {[%emt 0:00:45]} Bd8 {[%emt 0:00:04]} 81. Rd2 {[%emt 0:00:13]} Rg8 {[%emt 0:00:05]} 82. Kh7 $2 {[%emt 0:00:05][%mdl 8192]} (82. Rb2+ $11 Kc6 83. Kh7) 82... Re8 {[%emt 0:00:03]} 83. Kg6 $2 {[%emt 0:00:05][%mdl 8192]} (83. Rb2+ $11 Kc4 84. Rc2+ Kb3 85. Rd2) 83... Bc7 {[%emt 0:00:16]} 84. Rc2 $2 {[%emt 0:00:15][%mdl 8192]} (84. Rb2+ $11 Kc6 85. Ra2) 84... Bd6 {[%emt 0:00:29]} 85. Kf5 $2 {[%emt 0:00:15][%mdl 8192]} (85. Rb2+ $11 Bb4 86. Rh2) 85... Bc5 {[%emt 0:00:06]} 86. Rh2 $2 {[%emt 0:00:11][%mdl 8192]} (86. Rb2+ $11 Kc4 87. Ra2) 86... Kc6 {[%emt 0:00:06]} 87. Rh6+ {[%emt 0:00:08]} Kd5 {[%emt 0:00:07]} 88. Ra6 $2 {[%emt 0:01:00][%mdl 8192]} (88. Rh5 $11) 88... Bb4 {[%emt 0:01:58]} 89. Kf4 $2 {[%emt 0:00:38][%mdl 8192]} (89. Rb6 $11) 89... Rf8+ {[%emt 0:00:24]} 90. Kg4 $2 {[%emt 0:00:39][%mdl 8192]} (90. Ke3 $11) 90... Bc3 {[%emt 0:00:50]} 91. Ra3 $2 {[%emt 0:00:19][%mdl 8192]} (91. Rg6 $11) 91... Be5 {[%emt 0:00:36]} 92. Rf3 $2 {[%emt 0:00:56][%mdl 8192]} (92. Rd3+ $11 Ke4 93. Rd7) 92... Rg8+ {[%emt 0:00:15]} 93. Kf5 {[%emt 0:00:17]} Bd4 {[%emt 0:00:04]} 94. Rf4 $2 {[%emt 0:00:46][%mdl 8192]} (94. Rd3 $11) 94... Re8 {[%emt 0:02:53]} 95. Rf3 $2 {[%emt 0:00:29][%mdl 8192]} (95. Kg4 $11) 95... Re5+ {[%emt 0:00:11]} 96. Kf4 {[%emt 0:00:39]} Re8 {[%emt 0:00:34]} 97. Kf5 $2 {[%emt 0:00:05][%mdl 8192]} (97. Rd3 $11) 97... Be3 {[%emt 0:00:03]} 98. Kg6 $2 {[%emt 0:00:35][%mdl 8192]} (98. Rg3 $11) 98... Ke4 {[%emt 0:00:24]} 99. Kf7 {[%emt 0:00:37]} Ra8 {[%emt 0:00:19]} 100. Rf1 $2 {[%emt 0:00:35][%mdl 8192]} (100. Rg3 $11) 100... Bf4 {[%emt 0:00:20]} 101. Ke6 $2 {[%emt 0:00:30][%mdl 8192]} (101. Re1+ $11 Be3 102. Rb1) 101... Ra6+ {[%emt 0:00:02]} 102. Kd7 {[%emt 0:00:06]} Be5 {[%emt 0:00:28]} 103. Rd1 $2 {[%emt 0:01:23][%mdl 8192]} (103. Re1+ $11 Kd5 104. Rd1+ Bd4 105. Ke7) 103... Bd4 {[%emt 0:00:03]} 104. Ke7 $2 {[%emt 0:00:23][%mdl 8192]} (104. Re1+ $11 Kd5 105. Rd1) 104... Kd5 {[%emt 0:00:06]} 105. Kf7 {[%emt 0:00:17]} Rf6+ {[%emt 0:00:03]} 106. Ke7 $2 {[%emt 0:00:20][%mdl 8192]} (106. Kg8 $11) 106... Rg6 {[%emt 0:00:49]} 107. Kf7 $2 {[%emt 0:00:15][%mdl 8192]} (107. Rd2 $11) 107... Rg7+ {[%emt 0:00:05]} 108. Kf8 {[%emt 0:00:07]} Ra7 {[%emt 0:00:29]} 109. Kg8 $2 {[%emt 0:00:18][%mdl 8192]} (109. Rd2 $11) 109... Ke5 {[%emt 0:00:18]} 110. Re1+ $2 {[%emt 0:00:27][%mdl 8192]} (110. Rd2 $11) 110... Kf6 $1 {[%emt 0:00:24]} 111. Rf1+ {[%emt 0:01:19]} Kg6 {[%emt 0:00:15]} 112. Rf7 $2 {[%emt 0:01:35][%mdl 8192]} Ra8+ {[%emt 0:00:46]} 113. Rf8 {[%emt 0:00:02]} Ra3 {[%emt 0:00:18]} 114. Rf7 {[%emt 0:00:23][%cal Of7f3]} Rh3 {[%emt 0:02:04][%csl Gd4][%cal Rh3h8]} 115. Rg7+ $1 {[%emt 0:00:13]} Kf6 {[%emt 0:00:04]} 116. Rh7 $2 {[%emt 0:01:37][%mdl 8192]} (116. Rf7+ $11 Kg6 117. Rg7+ Kf6 118. Rf7+ Kg6) 116... Rg3+ {[%emt 0:01:50]} 117. Kf8 {[%emt 0:00:02]} Ke6 {[%emt 0:01:10]} 118. Re7+ {[%emt 0:00:07]} Kd6 {[%emt 0:00:24]} 119. Rh7 $2 {[%emt 0:00:42][%mdl 8192]} (119. Rf7 $11) 119... Rf3+ {[%emt 0:00:39]} 120. Rf7 {[%emt 0:00:33]} Rh3 {[%emt 0:00:04][%cal Rh3h8]} 121. Rf1 $2 {[%emt 0:00:35][%mdl 8192]} (121. Rf4 $11) 121... Ke6 $1 {[%emt 0:00:36][%cal Rh3h8] Black mates.} 122. Ke8 {[%emt 0:00:42]} Bf6 {[%emt 0:01:29][%cal Rh3h8]} 123. Re1+ {[%emt 0:00:12]} Be5 {[%emt 0:00:06][%cal Rh3h8]} 124. Rf1 {[%emt 0:00:21]} Bc3 {[%emt 0:01:08]} 125. Kd8 {[%emt 0:00:47] [#]} Be5 $1 {[%emt 0:00:25]} 126. Kc8 {[%emt 0:00:13] [#]} Rb3 $1 {[%emt 0:00:09] What a fight!  Weighted Error Value: White=0.96/Black=0.69} 0-1

[Event "74th PGNiG TERMIKA POL-ch Women 2022"]
[Site "Kruszwica"]
[Date "2022.05.10"]
[Round "2.3"]
[White "Cyfka, Karina"]
[Black "Antolak, Julia"]
[Result "0-1"]
[ECO "E11"]
[WhiteElo "2404"]
[BlackElo "2371"]
[Annotator "TA"]
[PlyCount "76"]
[EventDate "2022.05.09"]
[EventType "tourn"]
[EventCountry "POL"]
[SourceTitle "playchess.com"]
[Source "ChessBase"]
[SourceQuality "1"]
[TimeControl "40/5400+30:1800+30"]

{[%evp 9,76,11,24,32,22,33,30,34,21,29,37,41,66,31,60,56,57,61,62,23,23,25,28,0,25,-2,26,0,29,0,27,0,35,0,0,0,5,-27,0,0,95,73,60,67,73,72,71,-142,-118,-221,-156,-208,-112,-187,-177,-418,-398,-401,-383,-311,-91,-68,289,0,169,-2524,-2398,-29981,-5953]} 1. d4 {[%emt 0:00:02]} Nf6 {[%emt 0:00:05]} 2. c4 {[%emt 0:00:10]} e6 {[%emt 0:00:05]} 3. Nf3 {[%emt 0:00:18]} Bb4+ {[%emt 0:00:07]} 4. Nbd2 {[%emt 0:00:14][%cal Bb1d2,Bd2b3,Bb3d4][%mdl 32]} Be7 {[%emt 0:00:21]} 5. g3 {[%emt 0:06:18] [#]} c5 $146 {[%emt 0:02:53]} ({Predecessor:} 5... d5 6. Bg2 O-O 7. O-O b6 8. b3 Bb7 9. Bb2 Nbd7 10. Ne5 c5 11. cxd5 exd5 12. Ndc4 Nxe5 13. dxe5 Ne8 14. Ne3 Nc7 15. Nf5 Qd7 16. e4 Qe6 17. f4 d4 18. Qg4 g6 19. Nh6+ Kg7 {0-1 (48) Cofman,V (2283)-Colbow,C (2322) Bremen 2021}) 6. Bg2 {[%emt 0:02:35] E11: Bogo-Indian.} Nc6 {[%emt 0:02:21]} 7. Nb3 {[%emt 0:04:22]} cxd4 {[%emt 0:06:56]} 8. Nfxd4 {[%emt 0:04:42] White has an edge.} O-O {[%emt 0:02:30]} 9. O-O {[%emt 0:03:03]} Nxd4 {[%emt 0:04:02]} 10. Nxd4 {[%emt 0:06:18]} d6 {[%emt 0:08:05]} 11. b3 {[%emt 0:05:04]} a6 {[%emt 0:01:08]} 12. Bb2 {[%emt 0:04:04]} Rb8 {[%emt 0:00:58]} 13. e4 {[%emt 0:10:54]} e5 {[%emt 0:03:38]} 14. Nc2 {[%emt 0:07:10]} b5 {[%emt 0:01:44]} 15. cxb5 {[%emt 0:11:16]} axb5 {[%emt 0:00:49]} 16. Qe2 {[%emt 0:00:23]} Qb6 {[%emt 0:05:10]} 17. h3 {[%emt 0:05:31]} Ba6 {[%emt 0:07:21]} (17... b4 $5 {[%cal Rc8a6]}) 18. Rfd1 {[%emt 0:02:26]} Rbc8 {[%emt 0:05:09]} 19. Rd2 {[%emt 0:06:00]} Rc7 {[%emt 0:05:49]} (19... b4 $5 {[%cal Ra6e2]} 20. Qe3 Qb7 $11) 20. Kh2 {[%emt 0:01:30]} Rfc8 {[%emt 0:02:24]} (20... b4 $5 {[%cal Ra6e2]} 21. Qe1 Rc5 $11) 21. Ne3 {[%emt 0:04:07]} b4 {[%emt 0:03:58]} 22. Qe1 {[%emt 0:00:21]} g6 {[%emt 0:03:09]} 23. f4 {[%emt 0:01:23]} Rc5 {[%emt 0:03:51]} (23... exf4 {is interesting.} 24. Bd4 fxg3+ 25. Qxg3 Qb8) 24. Rad1 {[%emt 0:08:35]} Qb7 {[%emt 0:03:25]} (24... Bf8 $11) 25. fxe5 {[%emt 0:03:43]} dxe5 {[%emt 0:00:06]} 26. Nd5 $1 {[%emt 0:00:03]} Nxd5 {[%emt 0:02:34]} 27. exd5 {[%emt 0:00:04]} Bd6 {[%emt 0:00:08]} (27... f6 $2 28. d6 Qd7 29. dxe7 $18) 28. Qf2 $2 {[%emt 0:01:21]} (28. Bxe5 $16 Qe7 29. Bxd6 Qxd6 30. Qf2) 28... f5 {[%emt 0:04:03]} 29. Re1 {[%emt 0:00:37]} (29. Kh1 $17) 29... Qc7 {[%emt 0:00:24] ...e4 is the strong threat.} 30. Qe3 {[%emt 0:01:30]} (30. Kh1 $17) 30... Re8 {[%emt 0:01:19]} (30... e4 $19 {Threatens to win with ...Qd8.} 31. Bf1 Bxf1 32. Rxf1 Rc2 33. Rxc2 Qxc2+ 34. Rf2 Qd3 35. Qxd3 exd3) 31. Qg5 {[%emt 0:01:06]} (31. a3 $17) 31... e4 $19 {[%emt 0:08:06][%cal Oc5c3] aiming for ...Rc3!} 32. Qf6 {[%emt 0:00:29]} (32. Bd4 {keeps fighting.} Ra5 33. Red1) 32... Bxg3+ {[%emt 0:00:05]} 33. Kh1 {[%emt 0:00:02] Threatening mate with Qh8+.} Rc3 $1 {[%emt 0:00:09] Chess con chili.} 34. Red1 {[%emt 0:01:06] [#]} Bd3 {[%emt 0:00:38]} 35. d6 $17 {[%emt 0:00:36]} Bxd6 {[%emt 0:00:36][%mdl 8192] Black is more active.} 36. Rxd3 $2 {[%emt 0:00:22]} ({White has to play} 36. Bxc3 $18 bxc3 37. Rxd3) 36... Be5 $2 {[%emt 0:01:15] [#]} (36... Rxd3 $11 {and Black has nothing to worry.} 37. Rxd3 Be5 38. Bxe5 Qxe5 39. Qxe5 Rxe5) 37. Bxc3 $4 {[%emt 0:00:33][%mdl 8192]} Bxf6 $19 {[%emt 0:00:23]} 38. Bxf6 {[%emt 0:00:09]} exd3 {[%emt 0:00:25] Weighted Error Value: White=0.74/Black=0.53} 0-1